bitfinex/quotes_SOLUSD_20250817
["timestamp","ask_amount","ask_price","bid_price","bid_amount"]
[1755457603988,4.97,192.87,192.86,42.72]
[1755457604184,9.59349164,192.87,192.86,42.72]
[1755457605120,5.64,192.87,192.86,42.72]
[1755457606394,14.77833116,192.87,192.86,42.72]
[1755457606715,5.64,192.87,192.86,42.72]
[1755457606921,4.97,192.87,192.86,42.72]
[1755457609235,5.03,192.87,192.86,42.72]
[1755457609949,5.69,192.87,192.86,42.72]
[1755457610232,5.69,192.87,192.83,26.0]
[1755457610233,9.64349164,192.87,192.83,26.0]
[1755457610430,4.61349164,192.86,192.84,42.62]
[1755457610736,0.66,192.85,192.84,42.62]
[1755457611245,4.61349164,192.85,192.82,0.03]
[1755457611539,0.66,192.84,192.82,0.03]
[1755457612113,9.64349164,192.87,192.82,3.98349164]
[1755457612306,0.66,192.86,192.83,46.55349164]
[1755457612715,5.03,192.87,192.83,46.55349164]
[1755457612945,0.66,192.86,192.83,46.55349164]
[1755457613449,0.66,192.86,192.83,42.6]
[1755457613750,4.61349164,192.85,192.83,42.6]
[1755457614052,0.66,192.84,192.83,42.6]
[1755457614251,8.51004855,192.87,192.83,42.6]
[1755457614252,8.98349164,192.87,192.83,42.6]
[1755457614544,5.03,192.87,192.83,42.6]
[1755457614707,0.66,192.86,192.83,42.6]
[1755457614909,0.66,192.85,192.83,42.6]
[1755457615106,5.69,192.87,192.83,42.6]
[1755457615309,9.17177973,192.87,192.83,46.55349164]
[1755457615627,5.69,192.87,192.84,3.95349164]
[1755457616027,5.69,192.87,192.85,3.95349164]
[1755457616227,5.69,192.87,192.86,46.51349164]
[1755457616228,5.03,192.87,192.86,46.51349164]
[1755457616809,5.03,192.87,192.86,61.61970721]
[1755457618052,5.03,192.87,192.86,66.80481557]
[1755457620853,5.03,192.87,192.86,71.83481557]
[1755457622131,5.03,192.87,192.86,66.64970721]
[1755457622336,5.69,192.87,192.86,47.59]
[1755457622553,9.64349164,192.87,192.86,5.03]
[1755457622756,9.64349164,192.87,192.86,4.31]
[1755457622924,9.64349164,192.87,192.82,42.49]
[1755457623249,5.69,192.87,192.82,46.44349164]
[1755457623472,5.03,192.87,192.86,19.05970721]
[1755457623622,5.03,192.87,192.86,61.49970721]
[1755457624141,5.03,192.87,192.86,62.21970721]
[1755457625362,5.03,192.87,192.86,67.40481557]
[1755457626337,5.03,192.87,192.86,67.43481557]
[1755457627361,5.03,192.87,192.86,72.46481557]
[1755457628157,0.06,192.93,192.91,25.10621557]
[1755457628357,0.66,193.02,192.9,15.10621557]
[1755457628358,0.66,193.02,192.96,15.10621557]
[1755457628658,0.66,193.02,193.0,3.95349164]
[1755457628881,0.66,193.02,193.01,42.36]
[1755457629038,0.66,193.04,193.01,42.36]
[1755457629242,3.4834734,193.08,193.02,3.95349164]
[1755457629451,0.66,193.06,193.03,46.31349164]
[1755457629763,0.66,193.05,193.03,42.36]
[1755457629942,0.66,193.05,193.03,46.31349164]
[1755457630364,0.66,193.05,193.03,48.49865586]
[1755457630760,0.66,193.04,193.03,48.49865586]
[1755457631187,0.66,193.04,193.03,42.36]
[1755457635586,0.66,193.04,193.03,48.49865586]
[1755457635993,6.13865586,193.08,193.03,48.49865586]
[1755457636194,6.13865586,193.06,193.01,6.13865586]
[1755457636380,6.79865586,193.05,193.02,42.26]
[1755457636565,0.66,193.04,193.02,42.26]
[1755457636779,6.79865586,193.03,192.95,15.10621557]
[1755457637086,0.66,193.02,192.97,15.10621557]
[1755457637257,0.66,193.02,192.98,42.24]
[1755457638097,0.66,193.02,192.98,48.37865586]
[1755457638260,0.66,193.02,192.98,42.24]
[1755457638461,0.66,193.02,192.98,48.37865586]
[1755457638659,0.66,193.01,192.98,48.37865586]
[1755457639265,0.66,193.01,192.98,42.24]
[1755457641369,6.13865586,193.02,192.98,42.24]
[1755457641568,0.66,193.0,192.98,42.24]
[1755457641893,6.79865586,192.99,192.94,15.10621557]
[1755457642078,6.13865586,192.97,192.95,42.18]
[1755457642272,0.66,192.97,192.95,42.18]
[1755457642592,6.13865586,192.98,192.95,42.18]
[1755457642776,0.66,192.96,192.95,42.18]
[1755457642974,5.18109805,193.01,192.95,42.18]
[1755457642975,6.13865586,192.98,192.95,42.18]
[1755457643287,6.79865586,192.98,192.95,42.18]
[1755457646594,0.06,193.04,192.95,48.31865586]
[1755457646791,0.06,193.04,192.96,11.32107708]
[1755457646792,6.13865586,193.01,192.96,11.32107708]
[1755457647094,0.66,193.0,192.97,42.1]
[1755457647299,6.13865586,193.01,192.97,42.1]
[1755457647477,6.79865586,193.01,192.97,42.1]
[1755457648072,0.66,193.01,192.97,48.23865586]
[1755457648472,0.66,193.01,192.98,6.13865586]
[1755457648671,6.79865586,193.03,192.98,6.13865586]
[1755457648877,6.13865586,193.03,192.98,6.13865586]
[1755457649085,0.66,193.02,192.98,6.13865586]
[1755457649790,6.13865586,193.03,192.98,6.81865586]
[1755457650092,6.79865586,193.03,192.98,6.81865586]
[1755457650293,6.79865586,193.03,192.98,6.13865586]
[1755457650595,0.66,193.02,192.98,6.13865586]
[1755457651199,0.66,193.02,192.97,47.28214471]
[1755457651401,0.66,193.02,192.98,6.13865586]
[1755457651782,0.66,193.02,192.97,47.96214182]
[1755457651985,0.66,193.02,192.98,6.13865586]
[1755457652284,0.66,193.02,192.99,3.94799338]
[1755457652689,0.66,193.02,192.98,3.94799338]
[1755457652891,3.94799338,193.03,192.98,3.94799338]
[1755457653078,0.66,193.01,192.98,3.94799338]
[1755457653695,4.60799338,193.03,192.97,47.28214341]
[1755457653905,3.94799338,192.98,192.93,0.03]
[1755457654078,3.94799338,192.97,192.93,42.03]
[1755457654477,4.60799338,192.97,192.93,42.03]
[1755457654697,0.66,193.0,192.95,3.94799338]
[1755457654894,4.60799338,193.0,192.96,42.0]
[1755457655699,0.66,192.99,192.96,42.0]
[1755457655875,4.60799338,192.99,192.96,42.0]
[1755457656202,0.66,192.98,192.96,42.0]
[1755457656421,3.94799338,192.97,192.96,42.0]
[1755457656701,3.94799338,192.97,192.94,41.96]
[1755457656888,4.60799338,192.98,192.94,41.96]
[1755457657403,3.94799338,192.98,192.94,41.96]
[1755457657570,0.66,192.97,192.94,41.96]
[1755457659199,0.66,192.96,192.94,41.96]
[1755457659376,4.60799338,192.95,192.93,0.03]
[1755457659578,3.94799338,192.94,192.93,0.03]
[1755457659777,4.60799338,192.94,192.93,0.03]
[1755457660282,0.66,193.02,192.93,24.94733036]
[1755457660481,4.00799338,193.04,192.99,3.94799338]
[1755457660683,4.00799338,193.04,192.99,45.86799338]
[1755457660904,0.66,193.03,192.99,45.86799338]
[1755457661423,0.06,193.04,193.01,3.94799338]
[1755457661603,0.06,193.06,193.03,19.05420895]
[1755457661803,15.566221,193.1,193.06,41.10621557]
[1755457661985,4.60799338,193.13,193.09,26.0]
[1755457662308,0.66,193.12,193.09,26.0]
[1755457662808,4.60799338,193.11,193.07,41.88]
[1755457663390,0.06,193.08,193.07,41.88]
[1755457665301,0.06,193.08,193.07,68.90253502]
[1755457665500,0.06,193.08,193.07,63.72306644]
[1755457665895,0.06,193.08,193.07,63.12306644]
[1755457667114,0.06,193.08,193.07,48.01685087]
[1755457667321,0.06,193.08,193.07,63.72306644]
[1755457667831,0.06,193.08,193.07,73.93685087]
[1755457669004,0.23,193.11,193.07,73.93685087]
[1755457669902,5.17765856,193.14,193.08,6.13685087]
[1755457670414,5.1773877,193.15,193.09,6.13685087]
[1755457670612,6.13685087,193.14,193.09,6.13685087]
[1755457671118,6.80685087,193.13,193.08,6.13685087]
[1755457671326,0.67,193.12,193.09,41.78]
[1755457672612,0.67,193.11,193.09,41.78]
[1755457672815,6.80685087,193.13,193.09,41.78]
[1755457673018,0.67,193.12,193.09,41.78]
[1755457673818,0.67,193.11,193.09,41.78]
[1755457674225,6.13685087,193.14,193.09,47.91685087]
[1755457674405,6.13685087,193.14,193.09,48.60685087]
[1755457674606,6.80685087,193.14,193.09,48.60685087]
[1755457675036,0.67,193.14,193.1,6.13685087]
[1755457675533,0.67,193.13,193.09,47.91685087]
[1755457675736,6.80685087,193.13,193.09,41.78]
[1755457676032,6.13685087,193.14,193.09,48.60685087]
[1755457676235,0.67,193.13,193.09,47.91685087]
[1755457676426,6.80685087,193.12,193.09,41.78]
[1755457676730,0.67,193.11,193.09,41.78]
[1755457677508,0.06,193.12,193.09,48.60685087]
[1755457679521,0.06,193.12,193.11,6.13685087]
[1755457679729,0.06,193.12,193.11,62.90306644]
[1755457680041,0.06,193.12,193.11,63.59306644]
[1755457680637,0.06,193.12,193.11,68.77146217]
[1755457682023,0.06,193.12,193.11,63.59306644]
[1755457682215,0.06,193.12,193.11,56.70621557]
[1755457682412,0.06,193.12,193.11,62.84306644]
[1755457682743,0.06,193.12,193.11,63.53306644]
[1755457686243,0.06,193.12,193.11,68.71146217]
[1755457686421,0.06,193.12,193.11,66.51678448]
[1755457686622,0.06,193.12,193.11,62.5746113]
[1755457686834,0.06,193.12,193.11,66.51678448]
[1755457687053,0.06,193.12,193.11,24.91678448]
[1755457687351,0.06,193.12,193.11,66.45678448]
[1755457688360,0.06,193.12,193.11,61.27838875]
[1755457689358,0.06,193.12,193.11,66.45678448]
[1755457689656,0.06,193.12,193.11,61.27838875]
[1755457690027,0.06,193.12,193.11,66.45678448]
[1755457693835,0.06,193.12,193.11,66.48678448]
[1755457696522,0.06,193.12,193.11,62.5446113]
[1755457696751,0.06,193.12,193.11,65.79678448]
[1755457697885,0.06,193.12,193.11,86.45838875]
[1755457698371,0.06,193.12,193.11,91.63678448]
[1755457700640,0.06,193.12,193.11,92.31678448]
[1755457702750,0.06,193.12,193.11,91.63678448]
[1755457703649,0.06,193.12,193.11,92.31678448]
[1755457704351,0.06,193.12,193.11,91.63678448]
[1755457704944,0.06,193.12,193.11,92.31678448]
[1755457705368,0.06,193.12,193.11,91.63678448]
[1755457706573,0.06,193.12,193.11,92.31678448]
[1755457707313,0.06,193.12,193.11,91.63678448]
[1755457707889,0.06,193.12,193.11,92.31678448]
[1755457709772,0.06,193.12,193.11,66.31678448]
[1755457711374,0.68,193.21,193.15,41.10621557]
[1755457711678,0.68,193.21,193.2,3.94217318]
[1755457711880,0.68,193.21,193.2,45.14217318]
[1755457712588,0.68,193.21,193.2,41.2]
[1755457712987,0.68,193.21,193.18,26.0]
[1755457713391,4.62217318,193.21,193.19,41.18]
[1755457713690,0.68,193.21,193.19,45.12217318]
[1755457713895,0.68,193.23,193.21,15.10621557]
[1755457714080,0.68,193.23,193.22,45.12217318]
[1755457714284,5.17419473,193.27,193.22,41.18]
[1755457714815,4.62217318,193.26,193.22,41.18]
[1755457715107,0.68,193.25,193.22,40.68]
[1755457715468,0.06,193.23,193.22,40.68]
[1755457715671,0.74,193.23,193.22,40.68]
[1755457716809,4.68217318,193.23,193.18,26.0]
[1755457716974,4.68217318,193.23,193.15,5.85705842]
[1755457716975,0.68,193.22,193.19,41.12]
[1755457717178,0.68,193.22,193.2,41.12]
[1755457717391,0.06,193.23,193.21,41.12]
[1755457717392,4.00217318,193.23,193.21,41.12]
[1755457717999,0.68,193.22,193.21,41.12]
[1755457718477,0.68,193.22,193.19,3.94217318]
[1755457718790,0.68,193.21,193.19,3.94217318]
[1755457719181,0.06,193.23,193.2,45.04217318]
[1755457719622,0.74,193.23,193.2,45.04217318]
[1755457719816,0.68,193.22,193.17,26.0]
[1755457720116,0.68,193.22,193.18,41.08]
[1755457720414,0.68,193.21,193.18,45.02217318]
[1755457720977,0.06,193.23,193.19,3.94217318]
[1755457721186,0.68,193.22,193.2,41.08]
[1755457722604,0.06,193.23,193.2,41.08]
[1755457722806,0.68,193.21,193.2,41.08]
[1755457725415,0.74,193.23,193.2,41.08]
[1755457725618,0.68,193.22,193.2,41.08]
[1755457726198,0.68,193.22,193.21,41.0]
[1755457728744,0.06,193.23,193.21,44.94217318]
[1755457728922,0.06,193.23,193.21,41.69]
[1755457729103,0.06,193.23,193.22,3.94217318]
[1755457729902,0.06,193.23,193.21,44.94217318]
[1755457730412,0.06,193.23,193.22,3.94217318]
[1755457734003,0.06,193.23,193.21,46.17570068]
[1755457734205,0.06,193.23,193.22,3.94217318]
[1755457734648,0.06,193.23,193.22,24.91383642]
[1755457736021,0.06,193.23,193.22,24.22383642]
[1755457736608,0.06,193.23,193.22,24.91383642]
[1755457737023,2.23414518,193.3,193.29,26.0]
[1755457737344,2.23414518,193.3,193.29,70.80217318]
[1755457737705,2.23414518,193.3,193.29,87.11574608]
[1755457737909,12.89689452,193.47,193.29,87.11574608]
[1755457737910,0.68,193.4,193.34,15.10621557]
[1755457738105,5.16986456,193.43,193.37,3.94217318]
[1755457738327,16.39220165,193.46,193.37,3.94217318]
[1755457738328,0.68,193.44,193.41,3.94217318]
[1755457738526,0.68,193.43,193.41,44.80217318]
[1755457739038,0.68,193.43,193.41,40.86]
[1755457739341,0.68,193.42,193.41,40.86]
[1755457740313,9.79240632,193.42,193.39,40.82]
[1755457740510,3.94217318,193.4,193.26,12.93574936]
[1755457740714,4.62217318,193.39,193.34,29.94217318]
[1755457740915,4.62217318,193.41,193.36,3.94217318]
[1755457741218,0.68,193.44,193.39,3.94217318]
[1755457741536,4.62217318,193.43,193.39,40.82]
[1755457741716,3.94217318,193.41,193.39,40.82]
[1755457742118,0.68,193.4,193.36,26.0]
[1755457742343,0.68,193.39,193.37,40.8]
[1755457743349,4.62217318,193.41,193.37,40.8]
[1755457743563,0.68,193.4,193.37,40.8]
[1755457744335,3.94217318,193.42,193.37,45.43217318]
[1755457744646,4.62217318,193.43,193.38,3.94217318]
[1755457744871,4.62217318,193.43,193.37,45.43217318]
[1755457745363,3.94217318,193.42,193.37,45.43217318]
[1755457745548,0.68,193.42,193.37,45.43217318]
[1755457745748,4.62217318,193.42,193.37,45.43217318]
[1755457746566,0.68,193.42,193.37,41.49]
[1755457746761,4.62217318,193.42,193.37,45.43217318]
[1755457746935,4.62217318,193.42,193.37,41.49]
[1755457747135,4.62217318,193.42,193.37,45.43217318]
[1755457747362,3.94217318,193.4,193.33,15.79621557]
[1755457747568,0.68,193.39,193.34,59.78838875]
[1755457748167,0.68,193.38,193.3,19.04838875]
[1755457748472,0.68,193.38,193.31,40.72]
[1755457748473,3.94217318,193.35,193.31,40.72]
[1755457748640,3.94217318,193.35,193.31,41.41]
[1755457749151,3.94217318,193.37,193.32,0.69]
[1755457749360,3.94217318,193.33,193.28,0.69]
[1755457749532,3.94217318,193.32,193.29,40.7]
[1755457749977,4.62217318,193.32,193.29,40.7]
[1755457750178,3.94217318,193.32,193.29,40.7]
[1755457750463,5.85248316,193.34,193.29,40.7]
[1755457750661,3.94217318,193.32,193.29,40.7]
[1755457750856,3.94217318,193.32,193.3,40.68]
[1755457752682,4.62217318,193.31,193.24,0.69]
[1755457752840,3.94217318,193.3,193.25,55.76621557]
[1755457753160,3.94217318,193.29,193.25,55.76621557]
[1755457753367,0.68,193.36,193.28,19.04838875]
[1755457753664,3.94217318,193.36,193.31,3.94217318]
[1755457753842,3.94217318,193.36,193.32,40.66]
[1755457754033,3.94217318,193.36,193.32,41.35]
[1755457754239,3.94217318,193.37,193.32,44.60217318]
[1755457754453,0.06,193.44,193.34,3.94217318]
[1755457754651,3.94217318,193.42,193.37,3.94217318]
[1755457754882,0.68,193.42,193.38,40.64]
[1755457755165,4.62217318,193.41,193.38,40.64]
[1755457755548,3.94217318,193.41,193.38,40.64]
[1755457755865,5.84982887,193.43,193.38,40.64]
[1755457756065,3.94217318,193.41,193.38,40.64]
[1755457756457,5.84982887,193.43,193.38,40.64]
[1755457756765,0.68,193.58,193.42,19.04838875]
[1755457756948,0.68,193.58,193.53,26.0]
[1755457756949,3.94217318,193.57,193.53,26.0]
[1755457757149,3.45196958,193.59,193.53,66.6]
[1755457757369,0.68,193.6,193.53,66.6]
[1755457757538,3.94217318,193.58,193.53,70.54217318]
[1755457757740,4.62217318,193.57,193.53,26.0]
[1755457757944,0.68,193.56,193.53,66.6]
[1755457758244,4.62217318,193.55,193.52,40.6]
[1755457758467,0.68,193.55,193.49,32.1090488]
[1755457758765,0.68,193.55,193.47,32.7890488]
[1755457758766,6.1090488,193.52,193.47,32.7890488]
[1755457758949,5.16593468,193.58,193.5,6.1090488]
[1755457759156,6.1090488,193.57,193.52,6.1090488]
[1755457759466,6.1090488,193.55,193.51,26.0]
[1755457759767,5.16716771,193.53,193.48,26.0]
[1755457759971,5.16716771,193.53,193.49,6.1090488]
[1755457760154,26.0,193.59,193.5,47.3490488]
[1755457760155,6.1090488,193.56,193.5,47.3490488]
[1755457760467,0.68,193.59,193.51,15.10621557]
[1755457760674,6.1090488,193.58,193.53,6.1090488]
[1755457760979,6.1090488,193.56,193.53,40.56]
[1755457761181,5.84528925,193.6,193.54,40.56]
[1755457761475,5.84528925,193.6,193.54,46.6690488]
[1755457761651,6.1090488,193.59,193.54,40.56]
[1755457761970,0.68,193.62,193.55,0.68]
[1755457762171,6.1090488,193.6,193.55,0.68]
[1755457762343,6.1090488,193.63,193.58,6.1090488]
[1755457762548,5.16395558,193.65,193.59,6.7890488]
[1755457762764,6.1090488,193.64,193.59,6.7890488]
[1755457763045,0.68,193.66,193.6,6.7890488]
[1755457763273,11.2725074,193.67,193.61,6.1090488]
[1755457763449,5.1634586,193.67,193.62,40.52]
[1755457763777,0.68,193.66,193.61,40.52]
[1755457763954,6.1090488,193.63,193.58,26.68]
[1755457764148,0.68,193.62,193.55,21.89526437]
[1755457764339,6.1090488,193.64,193.56,41.2]
[1755457764543,0.68,193.65,193.58,6.1090488]
[1755457764946,0.68,193.66,193.58,6.1090488]
[1755457765156,6.1090488,193.64,193.58,6.1090488]
[1755457765344,6.1090488,193.64,193.57,6.7890488]
[1755457765345,6.1090488,193.62,193.57,6.7890488]
[1755457765548,6.7890488,193.62,193.58,40.5]
[1755457765752,6.7890488,193.62,193.54,0.68]
[1755457765753,5.16502246,193.61,193.54,0.68]
[1755457765961,5.84502246,193.61,193.54,0.68]
[1755457766172,5.16502246,193.61,193.56,6.1090488]
[1755457766345,11.27366379,193.63,193.57,0.68]
[1755457766544,6.1090488,193.62,193.57,6.7890488]
[1755457766778,5.16461499,193.63,193.57,40.48]
[1755457766779,0.68,193.61,193.57,40.48]
[1755457766978,6.1090488,193.6,193.57,40.48]
[1755457767165,6.7890488,193.61,193.57,40.48]
[1755457767371,6.1090488,193.61,193.57,40.48]
[1755457767687,6.7890488,193.61,193.57,40.48]
[1755457767980,5.16528925,193.6,193.57,40.48]
[1755457768948,11.27409868,193.61,193.57,40.48]
[1755457769380,5.16504988,193.61,193.57,40.48]
[1755457769579,6.1090488,193.62,193.57,46.5890488]
[1755457769849,6.1090488,193.6,193.57,40.48]
[1755457770483,0.68,193.61,193.57,40.48]
[1755457770972,0.68,193.61,193.55,6.1090488]
[1755457770973,6.1090488,193.6,193.55,6.1090488]
[1755457771146,0.68,193.63,193.57,40.42]
[1755457771542,0.68,193.63,193.57,46.5290488]
[1755457771775,6.1090488,193.6,193.57,40.42]
[1755457772146,6.1090488,193.59,193.57,40.42]
[1755457772374,0.68,193.62,193.57,40.42]
[1755457772749,6.1090488,193.6,193.57,40.42]
[1755457773564,6.1090488,193.61,193.57,40.42]
[1755457773854,6.1090488,193.59,193.57,40.42]
[1755457775151,5.1658054,193.59,193.57,40.42]
[1755457775478,0.68,193.58,193.51,26.0]
[1755457775646,6.1090488,193.55,193.54,40.38]
[1755457775852,0.68,193.57,193.5,0.68]
[1755457776067,0.68,193.57,193.51,40.38]
[1755457776269,6.1090488,193.53,193.51,40.38]
[1755457776652,6.1090488,193.54,193.51,40.38]
[1755457776849,0.68,193.54,193.51,40.38]
[1755457777078,18.07969558,193.59,193.51,40.38]
[1755457777265,11.95603062,193.54,193.51,40.38]
[1755457777461,5.84698182,193.54,193.51,40.38]
[1755457777779,6.1090488,193.52,193.51,40.38]
[1755457779775,6.1090488,193.53,193.51,40.38]
[1755457780350,5.16691561,193.54,193.51,40.38]
[1755457781762,5.16662361,193.55,193.51,40.38]
[1755457781963,5.84662361,193.55,193.51,40.38]
[1755457783269,5.16662361,193.55,193.51,40.38]
[1755457783477,0.68,193.6,193.54,3.927743]
[1755457783694,9.09355704,193.59,193.54,3.927743]
[1755457783998,3.927743,193.58,193.51,40.38]
[1755457784288,3.927743,193.56,193.51,44.987743]
[1755457784454,3.927743,193.56,193.52,0.68]
[1755457785272,5.8458294,193.58,193.52,4.607743]
[1755457785459,9.7735724,193.58,193.52,4.607743]
[1755457785688,0.67,193.61,193.54,3.927743]
[1755457785884,3.927743,193.6,193.55,40.28]
[1755457786094,4.597743,193.59,193.55,40.28]
[1755457786961,9.76336223,193.59,193.55,40.28]
[1755457787160,9.09336223,193.59,193.55,40.28]
[1755457787586,3.927743,193.56,193.5,26.0]
[1755457787767,3.927743,193.53,193.49,0.69]
[1755457787965,3.927743,193.54,193.51,40.26]
[1755457788690,0.67,193.55,193.51,40.26]
[1755457788901,9.09477264,193.54,193.51,40.26]
[1755457790187,5.16702964,193.54,193.51,40.26]
[1755457790384,9.09477264,193.54,193.51,40.26]
[1755457790899,5.16702964,193.54,193.51,40.26]
[1755457791062,3.927743,193.53,193.51,40.26]
[1755457791262,5.16702964,193.54,193.51,40.26]
[1755457791497,9.09477264,193.54,193.51,40.26]
[1755457792603,5.16669898,193.55,193.51,44.877743]
[1755457792897,9.09444198,193.55,193.51,40.95]
[1755457794105,9.09410615,193.56,193.52,0.69]
[1755457794297,0.06,193.54,193.52,0.69]
[1755457795294,0.06,193.54,193.51,40.26]
[1755457795685,0.06,193.54,193.51,40.95]
[1755457795890,4.657743,193.54,193.51,40.26]
[1755457796268,3.987743,193.54,193.51,40.26]
[1755457797606,0.06,193.54,193.51,40.26]
[1755457799180,3.927743,193.53,193.51,40.26]
[1755457799395,5.83742455,193.52,193.51,40.26]
[1755457799921,5.83742455,193.52,193.46,0.69]
[1755457800076,3.927743,193.48,193.44,0.03]
[1755457800397,7.3965674,193.47,193.44,0.03]
[1755457800606,4.597743,193.47,193.44,0.03]
[1755457801200,4.597743,193.46,193.44,0.03]
[1755457801377,9.09703739,193.45,193.44,0.03]
[1755457801711,21.0361847,193.45,193.42,0.03]
[1755457801874,3.927743,193.43,193.42,1e-08]
[1755457802199,57.03955968,193.43,193.31,15.531568]
[1755457802399,9.30503605,193.42,193.3,44.097743]
[1755457802709,9.30503605,193.42,193.3,3.957743]
[1755457802710,3.927743,193.39,193.3,3.957743]
[1755457802920,7.79200603,193.39,193.31,3.927743]
[1755457803120,8.01140431,193.39,193.33,3.927743]
[1755457803313,8.46200603,193.39,193.33,3.927743]
[1755457803491,3.47714128,193.42,193.33,0.69]
[1755457803492,5.84036347,193.41,193.33,0.69]
[1755457803698,4.597743,193.39,193.34,3.927743]
[1755457803899,4.597743,193.39,193.32,40.15]
[1755457804094,8.45094595,193.39,193.34,0.03]
[1755457804622,3.927743,193.35,193.34,0.03]
[1755457805118,4.597743,193.35,193.34,0.03]
[1755457805488,13.61356885,193.35,193.34,0.03]
[1755457805914,17.0719248,193.35,193.34,0.03]
[1755457806435,11.96512199,193.35,193.34,0.03]
[1755457806657,5.84164647,193.37,193.34,0.03]
[1755457806794,6.12315406,193.35,193.34,0.03]
[1755457807122,6.79315406,193.35,193.34,0.03]
[1755457807296,0.67,193.35,193.34,0.03]
[1755457807498,6.79315406,193.35,193.34,0.03]
[1755457807693,5.84164647,193.37,193.34,0.03]
[1755457807914,6.12315406,193.35,193.34,0.03]
[1755457808528,6.79315406,193.35,193.34,0.03]
[1755457808997,6.12315406,193.36,193.34,0.03]
[1755457809318,5.17164647,193.37,193.34,0.03]
[1755457809622,6.79315406,193.35,193.34,0.03]
[1755457810027,11.96512199,193.35,193.34,0.03]
[1755457810709,6.12315406,193.35,193.34,0.03]
[1755457811202,11.29512199,193.35,193.34,0.03]
[1755457811508,11.96512199,193.35,193.34,0.03]
[1755457812418,6.12315406,193.35,193.34,0.03]
[1755457812725,6.79315406,193.35,193.34,0.03]
[1755457813710,11.96512199,193.35,193.34,0.03]
[1755457820829,15.78205904,193.35,193.34,0.03]
[1755457821334,11.96512199,193.35,193.34,0.03]
[1755457822933,15.77993937,193.35,193.34,0.03]
[1755457823310,11.96512199,193.35,193.34,0.03]
[1755457825330,144.46512199,193.35,193.34,0.03]
[1755457827328,148.27833376,193.35,193.34,0.03]
[1755457828260,150.97589508,193.35,193.34,0.03]
[1755457828426,148.7900784,193.35,193.34,0.03]
[1755457835860,26.0,193.31,193.28,0.03]
[1755457836023,3.93733738,193.29,193.24,0.03]
[1755457836225,19.04355295,193.27,193.26,1e-08]
[1755457836450,22.85676472,193.27,193.26,1e-08]
[1755457836654,19.69355295,193.27,193.26,1e-08]
[1755457836834,3.82687551,193.27,193.26,1e-08]
[1755457837040,3.93733738,193.28,193.26,0.68000001]
[1755457837241,3.93733738,193.27,193.26,1e-08]
[1755457837447,7.76615105,193.27,193.26,1e-08]
[1755457838048,12.9402598,193.27,193.26,1e-08]
[1755457839335,58.14628795,193.27,193.26,1e-08]
[1755457839746,15.10621557,193.25,193.24,1e-08]
[1755457839930,92.18704436,193.25,193.24,1e-08]
[1755457840273,98.0116886,193.25,193.24,1e-08]
[1755457841538,58.1516886,193.25,193.24,1e-08]
[1755457841774,97.9916886,193.25,193.24,1e-08]
[1755457843160,99.28652081,193.25,193.24,1e-08]
[1755457843362,73.28652081,193.25,193.24,1e-08]
[1755457843530,77.5816647,193.25,193.24,1e-08]
[1755457843934,26.0,193.22,193.19,0.03]
[1755457844144,3.93733738,193.2,193.19,0.03]
[1755457844348,51.06082879,193.2,193.19,0.03]
[1755457844878,56.23681222,193.2,193.19,0.03]
[1755457845348,54.26456853,193.2,193.19,0.03]
[1755457845667,54.36822708,193.2,193.19,0.03]